bitfinex-derivatives/quotes_ETHF0:USTF0_20250331
["timestamp","ask_amount","ask_price","bid_price","bid_amount"]
[1743409742698,0.6927,1805.1,1805.0,1.10812]
[1743409742899,1.10807,1805.1,1805.0,1.10812]
[1743409743503,1.10812,1805.0,1804.9,2.56423]
[1743409744208,1.10809,1805.1,1805.0,1.10807]
[1743409744516,1.10809,1805.1,1805.0,2.61047]
[1743409746403,7.3746,1805.3,1805.0,1.5024]
[1743409746609,1.10809,1805.1,1805.0,1.10807]
[1743409748112,1.10806,1805.2,1805.1,1.10803]
[1743409749310,1.10809,1805.1,1805.0,1.10806]
[1743409750118,1.10817,1805.0,1804.9,1.10816]
[1743409750413,1.10818,1804.9,1804.8,5.02748]
[1743409750601,1.3896,1805.0,1804.9,1.10818]
[1743409750602,2.49778,1805.0,1804.9,1.10818]
[1743409750807,3.22068,1805.0,1804.9,1.10818]
[1743409751215,1.10818,1804.9,1804.8,5.02749]
[1743409751416,2.49778,1804.9,1804.8,5.02749]
[1743409752113,2.49778,1804.9,1804.8,4.31599]
[1743409754013,1.10824,1804.8,1804.7,1.80947]
[1743409754317,2.57044,1804.8,1804.7,1.80947]
[1743409758019,1.4622,1804.8,1804.7,1.80947]
[1743409758217,2.57044,1804.8,1804.7,1.80947]
[1743409758513,0.7229,1805.0,1804.9,1.10818]
[1743409758718,1.10808,1805.2,1805.1,1.10797]
[1743409758914,1.10806,1805.1,1805.0,1.81947]
[1743409759119,2.60096,1805.1,1805.0,1.81947]
[1743409759619,2.60096,1805.1,1805.0,2.53107]
[1743409760211,2.60096,1805.1,1805.0,3.97127]
[1743409762021,1.4929,1805.1,1805.0,3.97127]
[1743409762323,2.60096,1805.1,1805.0,3.97127]
[1743409762821,1.4929,1805.1,1805.0,3.97127]
[1743409763025,2.60096,1805.1,1805.0,3.97127]
[1743409763219,1.4929,1805.1,1805.0,3.97127]
[1743409764722,2.60096,1805.1,1805.0,2.8632]
[1743409765021,1.10824,1804.8,1804.7,4.31605]
[1743409765926,1.10824,1804.8,1804.7,3.2078]
[1743409766320,1.10824,1804.8,1804.7,5.7377]
[1743409767524,1.79744,1804.8,1804.7,5.7377]
[1743409768931,2.53932,1804.9,1804.8,1.10824]
[1743409769224,2.53932,1804.9,1804.8,2.50594]
[1743409771135,2.53932,1804.9,1804.8,1.3977]
[1743409772634,2.53932,1804.9,1804.8,2.50594]
[1743409773232,2.53932,1804.9,1804.8,1.3977]
[1743409773429,2.53932,1804.9,1804.8,2.50594]
[1743409774131,2.53932,1804.9,1804.8,1.3977]
[1743409774530,2.53932,1804.9,1804.8,2.50594]
[1743409775129,2.53932,1804.9,1804.8,1.3977]
[1743409776723,2.53932,1804.9,1804.7,4.31605]
[1743409776724,2.77061,1804.8,1804.6,0.7058]
[1743409776926,1.10849,1804.4,1804.3,1.10854]
[1743409777123,1.10849,1804.4,1804.3,1.3954]
[1743409777630,1.10849,1804.4,1804.3,2.50395]
[1743409778224,1.10849,1804.4,1804.3,1.3954]
[1743409778428,1.81409,1804.4,1804.3,1.3954]
[1743409778828,1.81409,1804.4,1804.2,4.6440257]
[1743409778829,1.10855,1804.3,1804.2,3.2161257]
[1743409779032,2.52905,1804.3,1804.2,3.2161257]
[1743409779728,1.10853,1804.4,1804.3,1.10855]
[1743409779935,1.5108,1804.5,1804.4,1.10849]
[1743409780134,1.5108,1804.5,1804.4,3.32429]
[1743409780434,5.718,1804.6,1804.4,3.32429]
[1743409780630,5.718,1804.6,1804.5,1.4765]
[1743409781226,1.5108,1804.7,1804.5,2.58492]
[1743409781431,1.10836,1804.6,1804.5,2.58492]
[1743409781831,1.10836,1804.6,1804.5,2.58491]
[1743409782134,1.10836,1804.6,1804.5,2.58492]
[1743409782629,1.10836,1804.6,1804.5,1.4765]
[1743409786035,1.10836,1804.6,1804.5,2.58492]
[1743409786236,1.10836,1804.6,1804.5,1.4765]
[1743409787434,1.10836,1804.6,1804.4,3.9471]
[1743409787435,1.10842,1804.5,1804.4,3.9471]
[1743409787735,1.84152,1804.5,1804.4,3.2078]
[1743409788138,1.10855,1804.3,1804.2,2.2103257]
[1743409788330,1.10855,1804.3,1804.2,0.7352257]
[1743409788731,1.10855,1804.3,1804.2,1.8438357]
[1743409789741,2.51513,1804.4,1804.3,1.10855]
[1743409790631,2.51509,1804.4,1804.3,4.31635]
[1743409791031,1.10844,1804.5,1804.4,1.10849]
[1743409791227,1.10844,1804.5,1804.4,1.82669]
[1743409792137,3.48812,1804.8,1804.5,1.10842]
[1743409792338,1.10836,1804.6,1804.5,1.10842]
[1743409793238,1.10842,1804.5,1804.4,1.82665]
[1743409793443,1.10842,1804.5,1804.4,0.7182]
[1743409793644,1.10842,1804.5,1804.4,1.82669]
[1743409793830,1.10849,1804.4,1804.3,5.06829]
[1743409794145,1.10847,1804.5,1804.4,1.10847]
[1743409794531,2.49827,1804.5,1804.4,1.10847]
[1743409794736,2.49827,1804.5,1804.4,1.10849]
[1743409795433,1.3898,1804.5,1804.4,1.10849]
[1743409795947,2.49822,1804.5,1804.4,1.10849]
[1743409796939,1.3898,1804.5,1804.4,1.10849]
[1743409797239,1.1084,1804.6,1804.5,1.10842]
[1743409797439,2.6256,1804.6,1804.5,1.10842]
[1743409798146,1.10846,1804.5,1804.4,1.10844]
[1743409798444,2.55956,1804.5,1804.4,1.10844]
[1743409798638,1.10849,1804.4,1804.3,5.06829]
[1743409799148,3.31017,1804.5,1804.4,1.10849]
[1743409800448,1.10838,1804.6,1804.5,1.10842]
[1743409800646,1.4511,1804.7,1804.6,1.10836]
[1743409800840,2.5594,1804.7,1804.6,1.10836]
[1743409801142,10.62097,1804.9,1804.6,1.10836]
[1743409801444,2.56174,1804.8,1804.7,2.1587]
[1743409801645,2.56174,1804.8,1804.7,1.4508]
[1743409802449,1.10844,1804.5,1804.4,1.10843]
[1743409802645,1.10844,1804.5,1804.4,2.55923]
[1743409803151,3.31019,1804.6,1804.5,1.10842]
[1743409803351,0.7483,1804.6,1804.5,2.55922]
[1743409803540,1.10835,1804.7,1804.6,1.10836]
[1743409803743,1.10835,1804.7,1804.6,3.30156]
[1743409806051,1.10835,1804.7,1804.6,2.1932]
[1743409806352,1.10835,1804.7,1804.6,3.30156]
[1743409809746,1.10835,1804.7,1804.6,4.04976]
[1743409810960,1.1083,1804.8,1804.7,1.1083]
[1743409811150,1.1083,1804.8,1804.7,1.4226]
[1743409811656,1.1083,1804.7,1804.6,0.7482]
[1743409813962,1.1083,1804.7,1804.6,2.1983]
[1743409814162,1.10842,1804.5,1804.4,1.10844]
[1743409814360,1.10842,1804.5,1804.4,2.55854]
[1743409815757,1.10842,1804.5,1804.4,1.4501]
[1743409816157,1.10842,1804.5,1804.4,2.55859]
[1743409816362,1.10842,1804.5,1804.4,1.4501]
[1743409816568,1.10849,1804.4,1804.3,2.1574]
[1743409816959,1.10855,1804.3,1804.2,0.0083257]
[1743409817164,5.71615,1804.3,1804.2,0.0083257]
[1743409818363,1.10879,1803.9,1803.8,3.2078]
[1743409818564,1.10879,1803.9,1803.8,4.639]
[1743409820468,2.55079,1803.9,1803.8,4.639]
[1743409821365,2.55079,1803.9,1803.8,1.4312]
[1743409821566,1.10885,1803.8,1803.7,0.0083257]
[1743409821773,2.55085,1803.8,1803.7,0.0083257]
[1743409822467,1.10904,1803.5,1803.4,3.2078]
[1743409823258,2.59304,1803.5,1803.4,3.2078]
[1743409823871,2.59304,1803.5,1803.4,4.6834]
[1743409824064,1.1091,1803.4,1803.3,0.0083257]
[1743409824269,3.3325,1803.4,1803.3,1.4839257]
[1743409825170,3.2078,1803.8,1803.4,2.77274]
[1743409825362,3.2078,1803.8,1803.5,1.3835]
[1743409825570,2.58135,1803.7,1803.6,0.6934]
[1743409825863,2.58135,1803.7,1803.6,2.0769]
[1743409826674,1.10895,1803.7,1803.6,3.18588]
[1743409826870,1.10895,1803.7,1803.6,2.0769]
[1743409828167,1.1091,1803.4,1803.3,3.2161257]
[1743409828362,1.10909,1803.5,1803.4,1.1091]
[1743409828565,5.3592,1803.6,1803.5,1.10904]
[1743409828566,6.46821,1803.6,1803.5,1.10904]
[1743409828774,6.46821,1803.6,1803.5,0.7413]
[1743409829169,6.46821,1803.6,1803.5,2.1351]
[1743409830569,1.10901,1803.6,1803.5,2.1351]
[1743409830976,1.1091,1803.4,1803.3,3.2161257]
[1743409831180,1.1091,1803.4,1803.3,4.7059257]
[1743409831670,2.5562,1803.4,1803.3,1.4981257]
[1743409832267,3.897,1803.5,1803.3,1.4981257]
[1743409832479,1.10904,1803.6,1803.5,1.10904]
[1743409832673,5.75295,1803.7,1803.6,1.10898]
[1743409832977,5.75295,1803.7,1803.5,3.2078]
[1743409832978,1.10898,1803.6,1803.5,3.2078]
[1743409833381,1.10898,1803.6,1803.5,4.31684]
[1743409834380,1.10898,1803.6,1803.5,3.2078]
[1743409835676,1.10898,1803.6,1803.5,4.31684]
[1743409835871,1.10898,1803.6,1803.5,3.2078]
[1743409836279,1.10904,1803.5,1803.4,0.7175]
[1743409836581,1.1091,1803.4,1803.3,0.0083257]
[1743409836880,1.1091,1803.4,1803.3,3.9594257]
[1743409837083,1.1091,1803.4,1803.3,1.8607857]
[1743409837270,1.10908,1803.5,1803.4,1.10906]
[1743409837783,1.1091,1803.4,1803.3,5.0685357]
[1743409838778,1.1091,1803.4,1803.3,3.9594257]
[1743409838983,1.1091,1803.4,1803.3,5.0685857]
[1743409839282,1.1091,1803.4,1803.3,1.8607857]
[1743409839479,1.1091,1803.4,1803.3,3.9594257]
[1743409839682,1.1091,1803.4,1803.3,0.7516257]
[1743409840584,5.0051,1803.4,1803.3,0.7516257]
[1743409840772,5.7104,1803.4,1803.3,0.7516257]
[1743409840970,7.1356,1803.4,1803.3,0.7516257]
[1743409842580,5.0051,1803.4,1803.3,1.8607857]
[1743409842776,5.0051,1803.4,1803.3,5.0685857]
[1743409842977,5.0051,1803.4,1803.3,1.8607857]
[1743409843191,5.0051,1803.4,1803.3,0.7516257]
[1743409843487,5.0051,1803.4,1803.3,1.8607857]
[1743409844485,5.0051,1803.4,1803.3,0.7516257]
[1743409845789,5.0051,1803.4,1803.3,0.0083257]
[1743409846385,5.0051,1803.4,1803.3,1.1174857]
[1743409846586,6.3965,1803.4,1803.3,0.0083257]
[1743409846789,6.3965,1803.4,1803.3,1.1174857]
[1743409846984,6.3965,1803.4,1803.3,0.0083257]
[1743409847879,1.10935,1803.0,1802.9,4.31717]
[1743409848083,5.00435,1803.0,1802.9,0.7471]
[1743409848385,1.10947,1802.8,1802.7,4.31728]
[1743409849290,1.1177757,1802.9,1802.8,1.10947]
[1743409849494,1.1177357,1802.9,1802.8,1.10947]
[1743409849684,1.1177357,1802.9,1802.8,1.4674]
[1743409849881,1.1177357,1802.9,1802.8,2.57687]
[1743409850391,1.1177357,1802.9,1802.8,4.07217]
[1743409851093,1.10924,1803.2,1803.1,1.10928]
[1743409851390,5.00324,1803.2,1803.1,1.10928]
[1743409851588,3.894,1803.2,1803.1,1.10928]
[1743409852095,5.00322,1803.2,1803.1,1.83738]
[1743409853391,5.00322,1803.2,1803.1,0.7281]
[1743409853590,5.00322,1803.2,1803.1,1.83738]
[1743409853795,5.00322,1803.2,1803.1,3.29058]
[1743409856090,5.00322,1803.2,1803.1,6.49838]
[1743409857695,0.0083257,1803.3,1803.2,1.10922]
[1743409857895,6.0062,1803.7,1803.2,2.1868]
[1743409858195,6.41507,1803.7,1803.6,1.10898]
[1743409859194,6.41507,1803.7,1803.6,2.47608]
[1743409859992,1.1172157,1803.8,1803.7,1.10892]
[1743409860199,6.5115157,1803.8,1803.7,1.10892]
[1743409860586,2.6185157,1803.8,1803.7,1.10892]
[1743409860789,6.5115157,1803.8,1803.7,1.10892]
[1743409861294,5.0102157,1803.8,1803.7,1.79482]
[1743409861490,6.5115157,1803.8,1803.7,1.79482]
[1743409861996,5.4026257,1803.8,1803.7,1.79482]
[1743409862295,0.0083257,1803.8,1803.7,1.79482]
[1743409862489,0.0083257,1803.8,1803.7,3.22442]
[1743409863097,3.893,1804.0,1803.9,1.10879]
[1743409863391,1.10867,1804.1,1804.0,1.10873]
[1743409863599,6.40964,1804.2,1804.1,1.10867]
[1743409863992,1.10867,1804.1,1804.0,2.53827]
[1743409864293,2.51667,1804.1,1804.0,5.74607]
[1743409864495,3.20237,1804.1,1804.0,5.74607]
[1743409864895,3.20237,1804.1,1804.0,2.53827]
[1743409865796,3.892,1804.2,1804.1,1.1086]
[1743409865797,1.10865,1804.2,1804.1,1.1086]
[1743409866097,5.00065,1804.2,1804.1,3.9832]
[1743409868302,1.10867,1804.1,1804.0,4.31647]
[1743409868504,2.1453,1804.1,1804.0,5.71927]
[1743409868704,1.4435,1804.1,1804.0,5.71927]
[1743409868999,3.892,1804.2,1804.1,1.10867]
[1743409869195,3.892,1804.2,1804.1,2.51147]
[1743409869397,2.1453,1804.3,1804.2,1.10861]
[1743409869592,6.0363,1804.3,1804.2,2.51141]
[1743409869796,7.14485,1804.3,1804.2,2.51141]
[1743409869999,6.0363,1804.3,1804.2,2.51141]
[1743409870500,7.14485,1804.3,1804.2,2.51141]
[1743409871694,3.25385,1804.3,1804.2,2.51141]
[1743409872204,1.4435,1804.3,1804.2,2.51141]
[1743409873100,2.55205,1804.3,1804.2,2.51141]
[1743409876100,4.99853,1804.4,1804.3,1.10855]
[1743409876308,4.99853,1804.4,1804.3,4.01485]
[1743409877008,1.5086,1804.4,1804.3,4.01485]
[1743409877213,5.3976,1804.4,1804.3,4.01485]
[1743409877411,1.5086,1804.4,1804.3,4.01485]
[1743409878608,2.61709,1804.4,1804.3,4.01485]
[1743409878805,1.5086,1804.4,1804.3,4.01485]
[1743409879013,2.61709,1804.4,1804.3,4.01485]
[1743409879816,1.5086,1804.4,1804.3,4.01485]
[1743409880516,61.88327,1804.9,1804.4,2.77122]
[1743409880817,1.5091,1804.7,1804.6,1.10836]
[1743409881015,4.99618,1804.9,1804.8,1.10824]
[1743409881317,3.2078,1805.1,1804.7,5.54127]
[1743409881318,3.31574,1805.0,1804.9,1.10818]
[1743409881505,2.2076,1805.0,1804.9,1.10818]
[1743409881705,0.7547,1805.2,1805.1,1.10806]
[1743409881912,1.10802,1805.2,1805.1,1.108]
[1743409882320,4.99598,1805.3,1805.2,1.10799]
[1743409882513,4.99598,1805.3,1805.0,1.4204]
[1743409882814,1.10806,1805.1,1805.0,2.52845]
[1743409883118,1.5092,1805.2,1805.0,1.4204]
[1743409883314,1.10806,1805.1,1805.0,0.6895]
[1743409883521,1.10812,1805.0,1804.9,1.10813]
[1743409883722,5.3972,1805.0,1804.8,3.8973]
[1743409884220,1.5092,1804.9,1804.8,5.00554]
[1743409886218,4.5855,1805.1,1805.0,1.10812]
[1743409887127,5.3072,1805.1,1805.0,1.10812]
[1743409887423,0.7283,1805.3,1805.0,1.10812]
[1743409887424,4.6404,1805.3,1805.2,1.10799]
[1743409887723,6.0606,1805.3,1805.2,1.10799]
[1743409887925,7.16853,1805.3,1805.2,1.10799]
[1743409888127,1.10802,1805.2,1805.1,1.10801]
[1743409888418,1.10806,1805.1,1805.0,4.31591]
[1743409888624,1.10818,1804.9,1804.8,1.7977]
[1743409889423,2.51898,1804.9,1804.8,1.7977]
[1743409889621,1.4108,1804.9,1804.6,3.2078]
[1743409889823,1.10836,1804.6,1804.5,0.0083257]
[1743409890023,4.99436,1804.6,1804.5,0.0083257]
[1743409890726,7.11726,1804.6,1804.5,1.1167457]
[1743409890917,7.11726,1804.6,1804.5,0.0083257]
[1743409891112,10.32506,1804.6,1804.5,0.0083257]
[1743409891320,1.10861,1804.2,1804.1,1.83554]
[1743409891525,3.885,1804.3,1804.2,1.10861]
[1743409891819,3.885,1804.3,1804.2,4.31641]
[1743409892021,3.885,1804.3,1804.2,5.05621]
[1743409892527,4.99355,1804.3,1804.2,5.05621]
[1743409892823,3.885,1804.3,1804.2,5.05621]
[1743409893031,4.99355,1804.3,1804.2,5.05621]
[1743409893824,1.10855,1804.3,1804.2,5.05621]
[1743409894427,2.5546657,1804.4,1804.3,1.10855]
[1743409895524,0.0083257,1804.4,1804.3,1.10855]
[1743409899025,3.8923257,1804.4,1804.3,1.10855]
[1743409899423,5.0008157,1804.4,1804.3,1.10855]
[1743409899617,6.4618157,1804.4,1804.3,1.10855]
[1743409900026,1.10855,1804.3,1804.2,5.05616]
[1743409900221,2.56955,1804.3,1804.2,5.05616]
[1743409900529,2.56955,1804.3,1804.2,5.75136]
[1743409901527,1.10861,1804.2,1804.1,0.0083257]
[1743409901727,1.10882,1803.9,1803.8,1.10881]
[1743409901929,1.10892,1803.7,1803.6,0.7017]
[1743409902130,1.10892,1803.7,1803.6,1.10898]
[1743409902531,2.53502,1803.7,1803.6,1.10898]
[1743409902927,1.4261,1803.7,1803.6,1.10898]
[1743409903333,1.4261,1803.7,1803.6,4.31678]
[1743409904133,2.53502,1803.7,1803.6,4.31678]
[1743409904334,2.53502,1803.7,1803.6,1.10898]
[1743409904934,1.4261,1803.7,1803.6,1.10898]
[1743409905335,2.53502,1803.7,1803.6,1.10898]
[1743409905524,1.4261,1803.7,1803.6,1.10898]
[1743409905930,2.53502,1803.7,1803.6,1.10898]
[1743409908436,1.4261,1803.7,1803.6,1.10898]
[1743409908637,5.3101,1803.7,1803.6,4.31678]
[1743409909139,6.41902,1803.7,1803.6,4.31678]
[1743409909635,2.53502,1803.7,1803.6,4.31678]
[1743409909937,1.4261,1803.7,1803.6,4.31678]
[1743409910139,5.3101,1803.7,1803.6,4.31678]
[1743409910333,1.4261,1803.7,1803.6,4.31678]
[1743409910540,5.3101,1803.7,1803.6,4.31678]
[1743409910745,0.7182,1804.0,1803.6,4.31678]
[1743409911034,3.884,1803.9,1803.8,1.10879]
[1743409911237,3.884,1803.9,1803.8,1.81459]
[1743409911441,4.99279,1803.9,1803.8,1.81459]
[1743409911833,3.884,1803.9,1803.8,1.81459]
[1743409912236,3.884,1803.9,1803.8,5.02239]
[1743409914238,0.7283,1804.3,1804.1,1.10867]
[1743409914449,3.25438,1804.3,1804.2,1.10861]
[1743409914737,7.13738,1804.3,1804.2,1.10861]
[1743409914942,1.4175,1804.3,1804.2,1.10861]
[1743409915243,0.0083257,1804.4,1804.3,1.10855]
[1743409915544,0.0083257,1804.4,1804.3,1.84245]
[1743409915742,4.99131,1804.7,1804.4,1.10849]
[1743409915944,4.99131,1804.7,1804.4,4.31629]
[1743409916242,6.40881,1804.7,1804.4,4.31629]
[1743409916634,6.40881,1804.7,1804.6,1.1083]
[1743409916839,5.3088257,1804.7,1804.6,1.1083]
[1743409917637,0.0083257,1804.7,1804.6,4.3161]
[1743409924246,0.7454,1805.3,1805.2,1.10799]
[1743409924548,4.6264,1805.3,1805.2,1.10799]
[1743409924751,5.73433,1805.3,1805.2,1.10799]
[1743409924945,1.85333,1805.3,1805.2,1.10799]
[1743409925349,2.1933,1805.3,1805.2,1.10799]
[1743409925747,6.0743,1805.3,1805.2,1.10799]
[1743409925945,7.18223,1805.3,1805.2,1.10799]
[1743409928753,6.0743,1805.3,1804.9,0.6955]
[1743409928959,1.10809,1805.1,1805.0,1.10807]
[1743409929161,2.55724,1805.2,1805.1,1.10806]
[1743409929456,1.10804,1805.2,1805.1,1.10806]
[1743409929953,1.10812,1805.1,1805.0,1.10809]
[1743409930154,1.10817,1805.0,1804.9,1.10814]
[1743409930360,3.879,1805.0,1804.9,2.54808]
[1743409932760,4.98712,1805.0,1804.9,2.54808]
[1743409933554,3.879,1805.0,1804.8,3.2078]
[1743409933860,1.83078,1804.9,1804.8,4.31604]
[1743409934053,1.83078,1804.9,1804.8,5.82914]
[1743409935871,1.83078,1804.9,1804.8,4.7209]
[1743409936053,2.57208,1804.9,1804.8,4.7209]
[1743409936256,1.10836,1804.6,1804.5,3.2078]
[1743409936564,1.10842,1804.5,1804.4,0.0083257]
[1743409936762,2.56612,1804.5,1804.4,0.0083257]
[1743409937656,2.56612,1804.5,1804.4,1.1168157]
[1743409937850,2.56612,1804.5,1804.4,0.0083257]
[1743409938051,2.56612,1804.5,1804.4,1.1168157]
[1743409938052,6.44412,1804.5,1804.4,1.1168157]
[1743409938256,6.44412,1804.5,1804.4,0.0083257]
[1743409938563,5.3357,1804.5,1804.4,1.1168157]
[1743409938754,3.2078,1804.7,1804.4,1.4255257]
[1743409938958,3.878,1804.6,1804.5,1.10842]
[1743409939160,4.98636,1804.6,1804.5,1.10842]
[1743409939464,1.10842,1804.5,1804.4,1.1167657]
[1743409939761,4.98641,1804.6,1804.5,1.10842]
[1743409939950,1.10842,1804.5,1804.4,1.1167657]
[1743409940350,2.58942,1804.5,1804.4,1.1167657]
[1743409942363,2.58942,1804.5,1804.4,0.0083257]
[1743409942764,2.58942,1804.5,1804.4,1.1168157]
[1743409944259,3.878,1804.6,1804.5,1.10842]
[1743409944562,3.878,1804.6,1804.5,4.31622]
[1743409944754,1.4921,1804.7,1804.6,1.10836]
[1743409944959,1.10816,1805.0,1804.9,1.10816]
[1743409945156,1.10821,1804.9,1804.8,1.10819]
[1743409945359,5.3701,1805.0,1804.9,1.10818]
[1743409945360,6.47827,1805.0,1804.9,1.10818]
[1743409945666,1.1082,1804.9,1804.8,1.10818]
[1743409946266,4.9862,1804.9,1804.8,1.10818]
[1743409946964,4.98618,1804.9,1804.8,1.10818]
[1743409947468,1.10824,1804.8,1804.7,4.31605]
[1743409947970,1.10824,1804.8,1804.7,4.3161]
[1743409948367,1.10824,1804.8,1804.7,3.2078]
[1743409948571,4.6661,1804.8,1804.4,1.1167657]
[1743409948766,1.10842,1804.5,1804.4,1.1168157]
[1743409949071,4.98542,1804.5,1804.4,1.1168157]
[1743409950474,4.98542,1804.5,1804.4,2.5530157]
[1743409951666,3.877,1804.5,1804.4,2.5530157]
[1743409952160,4.98542,1804.5,1804.4,2.5530157]
[1743409953977,4.6661,1804.8,1804.4,4.2156857]
[1743409954276,3.876,1804.7,1804.6,1.10832]
[1743409954471,59.0718,1805.1,1804.6,1.4619]
[1743409954768,4.31586,1805.1,1805.0,1.10812]
[1743409954972,8.19186,1805.1,1805.0,1.10812]
[1743409956063,1.10818,1804.9,1804.8,1.10819]
[1743409956271,1.10824,1804.8,1804.7,1.82004]
[1743409956467,4.98424,1804.8,1804.7,0.7118]
[1743409956663,1.1084,1804.6,1804.4,0.0083257]
[1743409956876,4.98442,1804.5,1804.4,0.0083257]
[1743409957063,1.10861,1804.2,1804.1,3.2078]
[1743409957269,3.876,1804.2,1803.9,1.10875]
[1743409957470,0.7373,1804.1,1804.0,1.10873]
[1743409957662,3.876,1804.2,1804.1,1.10867]
[1743409958271,3.8843257,1804.3,1804.2,1.10861]
[1743409958466,3.8843257,1804.3,1804.2,1.86071]
[1743409959472,0.0083257,1804.3,1804.2,5.06851]
[1743409962572,1.1168757,1804.3,1804.2,5.06851]
[1743409962775,1.1168757,1804.3,1804.2,3.2078]
[1743409962976,1.10867,1804.1,1804.0,1.1170257]
[1743409963173,2.58586,1804.2,1804.1,1.10867]
[1743409963683,1.10867,1804.1,1804.0,1.1170257]
[1743409963873,2.58587,1804.1,1804.0,1.1170257]
[1743409964384,6.46187,1804.1,1804.0,0.0083257]
[1743409964976,6.46187,1804.1,1804.0,1.1170557]
[1743409965273,5.3532,1804.1,1804.0,1.1170557]
[1743409966072,6.46187,1804.1,1804.0,0.0083257]
[1743409966272,6.46187,1804.1,1804.0,1.1170557]
[1743409969270,5.3532,1804.1,1804.0,1.1170557]
[1743409969583,0.0083257,1804.3,1804.2,1.10861]
[1743409969779,5.3996257,1804.3,1804.2,1.10861]
[1743409970181,6.5081757,1804.3,1804.2,1.10861]
[1743409971783,1.10867,1804.1,1804.0,1.1170457]
[1743409971994,4.31647,1804.1,1804.0,0.0083257]
[1743409972180,1.10892,1803.7,1803.6,4.7083]
[1743409972379,1.10892,1803.7,1803.6,2.60944]
[1743409972691,1.10898,1803.6,1803.5,0.6846]
[1743409972887,1.1091,1803.4,1803.3,1.84982]
[1743409973193,4.98409,1803.5,1803.4,1.1091]
[1743409973393,3.875,1803.5,1803.4,1.1091]
[1743409973995,5.3844,1803.5,1803.4,1.1091]
[1743409974597,1.10916,1803.3,1803.2,0.0083257]
[1743409974892,1.10916,1803.3,1803.2,1.1175057]
[1743409975085,1.10916,1803.3,1803.2,2.5320057]
[1743409975285,2.56706,1803.3,1803.2,2.5320057]
[1743409975486,1.4579,1803.3,1803.2,2.5320057]
[1743409976089,2.56706,1803.3,1803.2,1.4228257]
[1743409976292,2.56706,1803.3,1803.2,0.0083257]
[1743409976491,2.56706,1803.3,1803.2,1.1175457]
[1743409977700,1.4579,1803.3,1803.2,1.1175457]
[1743409978191,3.875,1803.4,1803.3,1.10916]
[1743409978493,3.875,1803.4,1803.3,3.32786]
[1743409979295,4.9841,1803.4,1803.3,3.32786]
[1743409979497,3.875,1803.4,1803.3,3.32786]
[1743409980190,2.1884,1803.6,1803.5,1.10904]
[1743409980395,6.0634,1803.6,1803.5,1.10904]
[1743409980591,8.19165,1803.8,1803.7,1.10892]
[1743409980791,1.10892,1803.7,1803.6,2.62683]
[1743409981002,2.49112,1803.7,1803.6,2.62683]
[1743409981203,2.49112,1803.7,1803.6,1.5179]
[1743409981403,1.3822,1803.7,1803.6,2.62688]
[1743409981605,0.753,1803.9,1803.6,1.5179]
[1743409981794,5.2572,1804.0,1803.9,1.10879]
[1743409981997,3.875,1804.0,1803.9,1.10879]
[1743409982196,4.98373,1804.0,1803.9,1.10879]
[1743409982398,4.98373,1804.0,1803.9,2.62669]
[1743409983005,3.875,1804.0,1803.9,2.62669]
[1743409985903,4.98373,1804.0,1803.9,2.62669]
[1743409986106,4.98373,1804.0,1803.9,1.5179]
[1743409986293,1.10887,1803.8,1803.7,1.10886]
[1743409986492,1.10887,1803.8,1803.7,2.58066]
[1743409986706,3.875,1804.0,1803.9,1.10879]
[1743409986903,1.83784,1804.2,1804.1,1.10867]
[1743409987102,4.6032,1804.2,1804.1,1.10867]
[1743409987706,0.0083257,1804.3,1804.2,1.10861]
[1743409988210,1.1168757,1804.3,1804.2,1.10861]
[1743409988504,0.0083257,1804.3,1804.2,1.10861]
[1743409988701,0.0083257,1804.3,1804.2,4.31641]
[1743409990605,4.98237,1804.6,1804.5,1.10842]
[1743409990905,3.874,1804.6,1804.5,1.10842]
[1743409991307,3.8961,1804.8,1804.7,1.1083]
[1743409991507,3.874,1804.8,1804.7,1.1083]
[1743409992306,4.98224,1804.8,1804.7,1.1083]
[1743409992605,3.8813257,1804.9,1804.8,1.10824]
[1743409992999,4.9895057,1804.9,1804.8,1.10824]
[1743409993203,3.8813257,1804.9,1804.8,1.10824]
[1743409993509,0.0083257,1804.9,1804.8,1.10824]
[1743409994409,0.0083257,1804.9,1804.8,3.33804]
[1743409999914,0.0083257,1804.9,1804.8,6.54584]
[1743410001413,1.1165057,1804.9,1804.8,6.54584]
[1743410001615,0.0083257,1804.9,1804.8,6.54584]
[1743410001914,1.1083,1804.7,1804.6,1.1166657]
[1743410002111,1.10829,1804.8,1804.7,1.10827]
[1743410002308,1.1083,1804.7,1804.6,0.0083257]
[1743410002508,1.1083,1804.7,1804.6,1.1166857]
[1743410003914,1.1083,1804.7,1804.6,0.0083257]
[1743410006709,1.1083,1804.7,1804.6,1.1166857]
[1743410007412,1.1083,1804.7,1804.6,0.0083257]
[1743410009813,1.4824,1804.8,1804.6,0.0083257]
[1743410010017,1.1083,1804.7,1804.6,0.0083257]
[1743410010918,1.1083,1804.7,1804.6,1.1166857]
[1743410011118,1.1083,1804.7,1804.6,2.5078857]
[1743410011718,1.1083,1804.7,1804.6,1.3995257]
[1743410012015,5.7078,1804.7,1804.1,1.10862]
[1743410012318,1.10867,1804.1,1804.0,7.16293]
[1743410013020,2.59727,1804.1,1804.0,7.16293]
[1743410013220,2.59727,1804.1,1804.0,6.41313]
[1743410014914,2.59727,1804.1,1804.0,5.3044]
[1743410015116,1.10873,1804.0,1803.9,0.0083257]
[1743410015416,1.10892,1803.7,1803.6,3.19208]
[1743410016118,2.58472,1803.7,1803.6,3.19208]